[Event "European Women-ch 2023"]
[Site "Petrovac"]
[Date "2023.03.20"]
[Round "3.8"]
[White "Makropoulou, Marina"]
[Black "Daulyte-Cornette, Deimante"]
[Result "0-1"]
[ECO "B40"]
[WhiteElo "2102"]
[BlackElo "2344"]
[Annotator "TA"]
[PlyCount "108"]
[EventDate "2023.03.15"]
[EventType "swiss"]
[EventCountry "MNE"]
[SourceTitle "playchess.com"]
[Source "ChessBase"]
[SourceQuality "1"]
[TimeControl "40/5400+30:1800+30"]

{[%evp 16,108,-7,0,0,-18,-13,-25,-38,-43,-13,-44,-33,-131,-138,-133,-129,-154,-156,-158,-143,-144,-137,-134,-137,-142,-133,-181,-178,-213,-213,-253,-253,-252,-237,-326,-322,-321,-260,-262,-262,-262,-223,-221,-230,-259,-257,-317,-300,-293,-287,-317,-314,-317,-317,-317,-315,-421,-427,-424,-404,-601,-587,-582,-582,-574,-572,-537,-513,-693,-604,-614,-613,-602,-589,-596,-588,-552,-536,-493,-452,-606,-569,-579,-584,-728,-682,-29966,-29965,-29979,-29980,-29987,-29988,-29988,-29989]} 1. e4 {[%emt 0:00:04]} c5 {[%emt 0:00:08]} 2. Nf3 {[%emt 0:00:28]} e6 {[%emt 0:00:07]} 3. d4 {[%emt 0:00:31]} cxd4 {[%emt 0:00:06]} 4. Nxd4 {[%emt 0:00:03]} Nf6 {[%emt 0:00:09]} 5. Bd3 {[%emt 0:05:38]} Nc6 {[%emt 0:01:12]} 6. Nxc6 {[%emt 0:11:30]} bxc6 {[%emt 0:00:21]} 7. O-O {[%emt 0:00:11]} d5 {[%emt 0:01:00]} 8. exd5 {[%emt 0:09:26]} cxd5 {[%emt 0:03:21]} 9. c4 {[%emt 0:00:04]} Bd6 {[%emt 0:09:10][%cal Bf8d6,Bd6h2,Bh2e5,Be5g7][%mdl 32] B40: Sicilian: 2...e6, Unusual lines.} 10. Qe2 {[%emt 0:07:08]} O-O {[%emt 0:10:04]} 11. Nc3 {[%emt 0:00:27]} dxc4 {[%emt 0:03:43] Black has an edge.} 12. Bxc4 {[%emt 0:00:01] [#]} Bb7 $146 {[%emt 0:00:45]} ({Predecessor:} 12... Qc7 13. h3 Bb7 14. Ba6 Bc6 15. Be3 Nd5 16. Nxd5 Bxd5 17. Rfc1 Qa5 18. a3 Be4 {1-0 Bayrak,A (2031)-Stiri,A (2193) EU-ch (Women) 9th 2008 (8)}) 13. Bg5 {[%emt 0:13:37]} Qc7 {[%emt 0:06:45]} (13... h6 $5 {[%cal Rh6g5]} 14. Be3 Qc7 $15) 14. Bxf6 {[%emt 0:05:26]} (14. Kh1 $15) 14... Bxh2+ $17 {[%emt 0:05:47]} 15. Kh1 {[%emt 0:00:05]} gxf6 {[%emt 0:00:05]} 16. Ba6 {[%emt 0:23:20]} Bxa6 {[%emt 0:07:05]} 17. Qxa6 {[%emt 0:00:02]} Be5 {[%emt 0:00:26]} 18. Rac1 {[%emt 0:00:55]} f5 $40 {[%emt 0:03:20][%mdl 128] Black wants a kill.} 19. Qe2 {[%emt 0:04:08][%cal Oc3d5]} Bg7 {[%emt 0:02:19]} 20. Qf3 {[%emt 0:03:32]} Rab8 {[%emt 0:03:24]} 21. b3 {[%emt 0:00:55]} (21. Rc2 $17 {was called for.}) 21... Qa5 $19 {[%emt 0:04:01]} 22. Rfd1 {[%emt 0:07:33]} Rfc8 {[%emt 0:05:43]} 23. Na4 {[%emt 0:00:49]} ({Don't go for} 23. Qg3 $2 f4 24. Qxf4 Bxc3 $19) 23... Rxc1 {[%emt 0:00:38]} 24. Rxc1 {[%emt 0:00:02]} Qd2 {[%emt 0:00:12][%csl LRa2,LRc1] Repels Rc2} 25. Rc4 {[%emt 0:02:59]} Qxa2 {[%emt 0:02:02]} 26. Nc5 {[%emt 0:00:27]} Qd2 {[%emt 0:08:36]} 27. g3 {[%emt 0:00:23]} Rd8 {[%emt 0:14:05] Threatens to win with ...Qe1+.} 28. Kg2 {[%emt 0:00:05]} Qd5 {[%emt 0:01:58] Inhibits b4.} 29. Qxd5 {[%emt 0:01:37]} Rxd5 {[%emt 0:01:19][%mdl 4096] Endgame KRB-KRN} ({Weaker is} 29... exd5 30. Ra4 $15) 30. Nb7 {[%emt 0:00:16]} Rb5 {[%emt 0:01:07]} 31. Rc8+ {[%emt 0:00:24]} Bf8 {[%emt 0:00:06]} 32. Nd8 {[%emt 0:00:39]} Rxb3 {[%emt 0:00:46]} 33. Rc7 {[%emt 0:00:31]} a5 {[%emt 0:00:34][%cal Ba7a5,Ba5a4,Ba4a3][%mdl 32]} 34. Nxf7 {[%emt 0:00:10]} a4 {[%emt 0:00:33] ...a3 is the strong threat.} 35. Ng5 {[%emt 0:00:50]} Rb6 {[%emt 0:03:00]} 36. Nxh7 {[%emt 0:01:44] [#] Intending Nf6+ and mate.} Bg7 {[%emt 0:00:10] Wards off Nf6+} 37. Ng5 {[%emt 0:00:06]} Ra6 {[%emt 0:00:32] Repels Ra7} 38. Rc8+ {[%emt 0:02:24]} (38. Rc2 $142) 38... Bf8 {[%emt 0:00:05] aiming for ...a3.} 39. Rc2 {[%emt 0:00:33]} a3 {[%emt 0:00:37]} 40. Ra2 {[%emt 0:00:00]} Kg7 {[%emt 0:00:00]} 41. Nf3 {[%emt 0:02:10]} Kf6 {[%emt 0:03:57] And now ...Rb6 would win.} 42. Kf1 {[%emt 0:00:40]} e5 {[%emt 0:03:58] White must now prevent ...Rb6.} 43. Ke2 {[%emt 0:00:35]} Ke6 {[%emt 0:02:14]} 44. Nd2 {[%emt 0:02:21]} Bb4 {[%emt 0:01:17]} 45. Nc4 {[%emt 0:00:34]} Kd5 {[%emt 0:06:12]} 46. Ne3+ {[%emt 0:00:37]} Kc5 {[%emt 0:00:11]} 47. Kd3 {[%emt 0:05:35]} Rd6+ {[%emt 0:04:44]} 48. Kc2 {[%emt 0:00:24]} f4 {[%emt 0:02:07]} 49. gxf4 {[%emt 0:00:40]} exf4 {[%emt 0:00:04]} 50. Ng2 {[%emt 0:03:29]} Rd4 {[%emt 0:08:51] ( -> ...Kc4)} 51. Kb3 {[%emt 0:01:01]} Rd3+ {[%emt 0:02:45] Black mates.} 52. Ka4 {[%emt 0:00:29] [#]} Kc4 $1 {[%emt 0:00:12]} 53. Nxf4 {[%emt 0:01:30]} Rd8 {[%emt 0:01:04][%cal Rd8a8]} 54. Rc2+ {[%emt 0:02:24]} Bc3 {[%emt 0:00:05] Black took control after the opening.   Weighted Error Value: White=0.48/Black=0.08 (flawless)} 0-1

[Event "European Women-ch 2023"]
[Site "Petrovac"]
[Date "2023.03.20"]
[Round "3.9"]
[White "Heinemann, Josefine"]
[Black "Dylag, Emilia"]
[Result "1-0"]
[ECO "C88"]
[WhiteElo "2343"]
[BlackElo "2052"]
[Annotator "TA"]
[PlyCount "93"]
[EventDate "2023.03.15"]
[EventType "swiss"]
[EventCountry "MNE"]
[SourceTitle "playchess.com"]
[Source "ChessBase"]
[SourceQuality "1"]
[TimeControl "40/5400+30:1800+30"]

{[%evp 20,93,23,15,57,11,12,11,9,15,22,2,78,16,23,-4,-1,-3,0,0,0,0,17,18,22,19,25,22,24,27,50,11,124,10,204,212,517,504,496,364,352,350,268,279,275,277,279,274,277,266,483,484,621,601,519,512,504,486,2314,2313,1873,1591,1487,1045,5165,2506,1495,1235,1341,2079,1960,1762,2433,2244,29964,9492]} 1. e4 {[%emt 0:00:04]} e5 {[%emt 0:00:09]} 2. Nf3 {[%emt 0:00:07]} Nc6 {[%emt 0:00:08]} 3. Bb5 {[%emt 0:00:56]} a6 {[%emt 0:00:16]} 4. Ba4 {[%emt 0:00:04]} Nf6 {[%emt 0:00:24]} 5. O-O {[%emt 0:00:47]} b5 {[%emt 0:00:35]} 6. Bb3 {[%emt 0:00:05]} Be7 {[%emt 0:00:40]} 7. Re1 {[%emt 0:00:25]} O-O {[%emt 0:00:34]} 8. a4 {[%emt 0:02:20]} Bb7 {[%emt 0:06:36]} 9. Nc3 {[%emt 0:02:21]} b4 {[%emt 0:06:56]} 10. Nd5 {[%emt 0:00:10]} Na5 {[%emt 0:01:48]} 11. Ba2 {[%emt 0:03:15]} b3 {[%emt 0:18:41] now supersedes 11...Nxd5. C88: Closed Ruy Lopez: Anti-Marshall Systems.} 12. Nxf6+ {[%emt 0:05:18]} (12. Nxe7+ $14 Qxe7 13. cxb3) 12... Bxf6 $11 {[%emt 0:00:07]} 13. cxb3 {[%emt 0:00:05]} d5 {[%emt 0:03:02] The position is equal.} 14. d4 {[%emt 0:07:15]} dxe4 {[%emt 0:03:37]} ({Don't take} 14... exd4 15. e5 Be7 16. Nxd4 $16) 15. Nxe5 {[%emt 0:01:27]} c5 {[%emt 0:14:26] [#]} 16. Be3 {[%emt 0:07:06] [#]} ({Better is} 16. Qg4 $1 $16) 16... Rc8 $146 {[%emt 0:14:26]} ({Predecessor:} 16... Qd6 17. Nxf7 Rxf7 18. dxc5 Qe6 19. b4 Nc4 20. Qd6 Qxd6 21. cxd6 Nxe3 22. Rxe3 Rd8 {½-½ Malicka,M (2387)-Shehzad,S (2252) Krakow op-A 2022 (4)}) 17. b4 {[%emt 0:19:34]} cxb4 {[%emt 0:02:57]} 18. Qg4 {[%emt 0:00:04]} b3 {[%emt 0:12:51]} 19. Bb1 {[%emt 0:00:08]} Bxe5 {[%emt 0:03:54]} 20. dxe5 {[%emt 0:01:17][%cal Oe3h6]} f5 {[%emt 0:03:03]} (20... Qd5 $5 {[%cal Rd5e5]}) 21. exf6 {[%emt 0:01:35]} Qxf6 {[%emt 0:00:06]} 22. Bxe4 {[%emt 0:06:48][%cal Oe3d4] [#] Bd4! would be deadly.} Rc4 {[%emt 0:02:14] Wards off Bd4} (22... Qxb2 $2 23. Bxb7 Nxb7 24. Bd4 $18) 23. f3 {[%emt 0:00:21]} Bxe4 {[%emt 0:00:16]} (23... Qxb2 $2 24. Qe6+ Kh8 25. Bxb7 $18) 24. fxe4 {[%emt 0:00:06]} Qe5 {[%emt 0:01:55]} 25. Bb6 {[%emt 0:03:36] Hoping for Bxa5.} Nc6 {[%emt 0:02:39]} (25... Rc2 $1 $11) 26. Rad1 {[%emt 0:02:25]} ({White should try} 26. Rac1 $16 Rc2 27. Rxc2 bxc2 28. Qe2) 26... Nd4 $2 {[%emt 0:00:37] Loses the game.} ({But not} 26... Rb4 27. Bf2 $16 (27. a5 h6 $16)) (26... Rc2 $11 {and Black has nothing to worry.}) 27. Qd7 $18 {[%emt 0:03:02]} Nc2 {[%emt 0:00:30]} (27... Ne6 28. Qd5 Qxd5 29. exd5 Nc5 30. Bxc5 Rxc5) 28. Rf1 {[%emt 0:01:02][%cal Od7f7] White wants to mate with Qf7+!} Rcc8 {[%emt 0:00:30]} 29. Rxf8+ {[%emt 0:01:57]} Rxf8 {[%emt 0:00:06]} 30. Qd5+ {[%emt 0:00:06]} Qxd5 {[%emt 0:00:05]} 31. exd5 {[%emt 0:00:03][%mdl 4096] Endgame Black must now prevent d6. KRB-KRN} Rf7 {[%emt 0:00:34]} 32. d6 {[%emt 0:04:09] d7 is the strong threat.} Rd7 {[%emt 0:00:05]} 33. Bc5 {[%emt 0:00:03] Repels Nb4} Kf7 {[%emt 0:00:33]} 34. Rd3 {[%emt 0:00:18]} Na1 {[%emt 0:00:39]} (34... Ke6 35. Rxb3 Kd5) 35. Re3 {[%emt 0:00:49]} Rb7 {[%emt 0:00:28]} 36. Kf2 {[%emt 0:03:29]} Nc2 {[%emt 0:00:39]} 37. Re7+ {[%emt 0:00:37]} Rxe7 {[%emt 0:00:06]} 38. dxe7 {[%emt 0:00:02] KB-KN} h5 {[%emt 0:00:45]} (38... Ke8 $142 39. Ke2 g6) 39. h4 {[%emt 0:01:58]} Ke8 {[%emt 0:00:51]} 40. Ke2 {[%emt 0:00:00]} Kf7 {[%emt 0:00:00]} 41. Kd2 {[%emt 0:00:41]} g6 {[%emt 0:01:27]} 42. g3 {[%emt 0:00:23]} Ke8 {[%emt 0:00:05]} 43. Kc3 {[%emt 0:00:31]} Ne1 {[%emt 0:00:48]} 44. Kxb3 {[%emt 0:01:49]} Nd3 {[%emt 0:00:32]} 45. Bd6 {[%emt 0:00:26]} Nf2 {[%emt 0:00:11]} 46. Kc4 {[%emt 0:01:18]} Ne4 {[%emt 0:00:10]} 47. Kd5 {[%emt 0:00:22] Weighted Error Value: White=0.25 (precise) /Black=0.81} 1-0

[Event "European Women-ch 2023"]
[Site "Petrovac"]
[Date "2023.03.20"]
[Round "3.9"]
[White "Klek, Hanna Marie"]
[Black "Garifullina, Leya"]
[Result "1/2-1/2"]
[ECO "B92"]
[WhiteElo "2314"]
[BlackElo "2372"]
[Annotator "TA"]
[PlyCount "64"]
[EventDate "2023.03.15"]
[EventType "swiss"]
[EventCountry "MNE"]
[SourceTitle "playchess.com"]
[Source "ChessBase"]
[SourceQuality "1"]
[TimeControl "40/5400+30:1800+30"]

{[%evp 13,64,15,27,0,6,-12,14,8,35,-2,0,-14,-8,-12,-14,-48,-5,-23,0,0,16,0,12,0,8,0,0,0,0,0,16,25,9,0,0,-44,-47,-60,-36,-40,-34,-54,0,-51,-18,-97,-19,-14,0,-102,-19,-10,0]} 1. e4 {[%emt 0:00:03]} c5 {[%emt 0:00:18]} 2. Nf3 {[%emt 0:00:07]} d6 {[%emt 0:00:05]} 3. d4 {[%emt 0:00:04]} cxd4 {[%emt 0:00:10]} 4. Nxd4 {[%emt 0:00:04]} Nf6 {[%emt 0:00:08]} 5. Nc3 {[%emt 0:00:04]} a6 {[%emt 0:00:07]} 6. Be2 {[%emt 0:00:05]} e5 {[%emt 0:00:28]} 7. Nb3 {[%emt 0:00:07]} Be7 {[%emt 0:00:31]} 8. h4 {[%emt 0:00:08] B92: Sicilian Najdorf: 6 Be2.} Be6 {[%emt 0:01:05]} 9. f4 {[%emt 0:00:08] [#]} h6 $146 {[%emt 0:12:31]} ({Predecessor:} 9... b5 10. fxe5 dxe5 11. Qxd8+ Bxd8 12. Bf3 Nbd7 13. Bd2 Rc8 14. O-O-O Nb6 15. Bg5 b4 {½-½ Martinez Alcantara,J (2598)-So,W (2772) Chess.com Rapid Wk1 Swiss 2022 (9)}) 10. f5 {[%emt 0:03:43]} Bd7 {[%emt 0:01:39][%cal Od6d5]} 11. Qd3 {[%emt 0:04:14]} Bc6 {[%emt 0:02:59]} 12. Bf3 {[%emt 0:00:59]} b5 {[%emt 0:03:05]} 13. a3 {[%emt 0:01:41]} Nbd7 {[%emt 0:02:43]} 14. Bd2 {[%emt 0:22:12]} h5 {[%emt 0:09:12]} 15. O-O-O {[%emt 0:02:49]} Rc8 {[%emt 0:16:28]} 16. Kb1 {[%emt 0:06:01]} Qc7 {[%emt 0:04:06]} 17. Rc1 {[%emt 0:07:28]} Nb6 {[%emt 0:05:19]} 18. Na5 {[%emt 0:03:56]} Ba8 $1 {[%emt 0:02:43]} 19. Rhd1 {[%emt 0:13:42][%cal Bh1d1,Bd1d3,Bd3g3][%mdl 32]} Nbd7 {[%emt 0:05:37]} 20. Nb3 {[%emt 0:01:55]} Qb8 {[%emt 0:02:54]} 21. Qe2 {[%emt 0:08:10]} Bd8 {[%emt 0:01:59]} 22. Be1 {[%emt 0:04:07]} Nb6 {[%emt 0:04:41]} 23. Rd3 {[%emt 0:01:30]} Nc4 {[%emt 0:00:56]} 24. Nd5 {[%emt 0:00:43]} Bxd5 {[%emt 0:02:17]} 25. exd5 {[%emt 0:00:06]} Kd7 {[%emt 0:01:21][%cal Oe5e4] Strongly threatening ...e4!} (25... O-O $5 {[%cal Re5e4]} 26. Bxh5 Re8 $15) 26. Be4 {[%emt 0:01:29]} Bb6 {[%emt 0:01:02]} 27. Rg3 {[%emt 0:02:01]} Rh7 {[%emt 0:03:17]} (27... Ke8 $15) 28. Ka2 {[%emt 0:01:27]} (28. Bd3 $11) 28... Qa7 {[%emt 0:00:57] Threatens to win with ...Be3.} 29. Bd2 {[%emt 0:02:53] [#] Against Be3} (29. Bd3 $11) 29... Bf2 {[%emt 0:04:52]} (29... a5 $1 $17 {White should prevent ...a4.} 30. Bg5 Nxe4 31. Qxe4 f6) 30. Rh3 $11 {[%emt 0:00:53]} Bb6 {[%emt 0:03:00]} (30... Nxe4 $11 31. Qxe4 a5) 31. Rg3 $17 {[%emt 0:00:37] [#]} Bg1 {[%emt 0:00:37]} (31... a5 $1 $17 32. Bg5 Nxe4 33. Qxe4 f6) 32. Rf1 $11 {[%emt 0:01:16]} Bb6 {[%emt 0:03:02] Weighted Error Value: White=0.14 (very precise) /Black=0.20 (precise)} 1/2-1/2

[Event "European Women-ch 2023"]
[Site "Petrovac"]
[Date "2023.03.20"]
[Round "3.9"]
[White "Manova, Ivana"]
[Black "Shpanko, Nadiia"]
[Result "1/2-1/2"]
[ECO "B15"]
[WhiteElo "1923"]
[BlackElo "2164"]
[Annotator "TA"]
[PlyCount "108"]
[EventDate "2023.03.15"]
[EventType "swiss"]
[EventCountry "MNE"]
[SourceTitle "playchess.com"]
[Source "ChessBase"]
[SourceQuality "1"]
[TimeControl "40/5400+30:1800+30"]

{[%evp 16,108,0,0,0,0,16,-9,-4,-15,-16,0,0,-26,-22,-20,-32,-31,-11,-18,0,0,0,-14,0,0,0,0,0,0,0,0,-6,-5,0,0,11,11,11,11,11,11,8,11,33,33,31,0,0,0,14,5,1,0,0,0,12,8,10,0,0,0,0,0,0,0,0,0,0,0,0,0,0,0,0,0,0,0,0,0,0,0,0,0,0,0,0,0,0,0,0,0,0,0,0]} 1. e4 {[%emt 0:00:18]} c6 {[%emt 0:00:07]} 2. Nc3 {[%emt 0:00:51]} d5 {[%emt 0:00:14]} 3. Nf3 {[%emt 0:00:29]} dxe4 {[%emt 0:02:38]} 4. Nxe4 {[%emt 0:00:15]} Nf6 {[%emt 0:00:11]} 5. Nxf6+ {[%emt 0:01:36]} exf6 {[%emt 0:00:15]} 6. d4 {[%emt 0:02:46]} Bd6 {[%emt 0:00:37]} 7. Bd3 {[%emt 0:07:58]} O-O {[%emt 0:01:29]} 8. O-O {[%emt 0:00:39]} Bg4 {[%emt 0:01:39]} 9. h3 {[%emt 0:03:09]} Bh5 {[%emt 0:00:25] B15: Caro-Kann: 3 Nc3: 3...g6 and 3...dxe4 4 Nxe4 Nf6 5 Nxf6+ exf6.} 10. c3 {[%emt 0:04:51] 10.Bf5 gains popularity.} Re8 {[%emt 0:05:35]} 11. g4 {[%emt 0:14:46]} (11. Qb3 {looks sharper.} Qc7 12. Nh4 Nd7 13. a4) 11... Bg6 {[%emt 0:00:22]} 12. Nh4 {[%emt 0:01:00]} Bxd3 {[%emt 0:03:36]} 13. Qxd3 {[%emt 0:00:08]} Nd7 {[%emt 0:04:23]} 14. Bd2 {[%emt 0:05:04] [#]} Nc5 $1 {[%emt 0:04:00]} 15. Qc2 {[%emt 0:04:02]} (15. dxc5 $2 {is the wrong capture.} Bh2+ 16. Kxh2 Qxd3 $19) 15... Ne6 {[%emt 0:12:38] [#]} 16. Rae1 $146 {[%emt 0:05:35]} ({Predecessor:} 16. f4 Bc7 17. Rae1 Nxf4 18. Rxe8+ Qxe8 19. Bxf4 Bxf4 20. Rxf4 Qe1+ 21. Kh2 Qxh4 22. Qe2 {½-½ Roubal,M (1923)-Mamedov,E (2313) Wch U12 Batumi 2022 (4)}) 16... Qc7 {[%emt 0:04:52]} 17. Ng2 {[%emt 0:05:57][%cal Bh4g2,Bg2e3,Be3c4,Bc4a5][%mdl 32]} Ng5 {[%emt 0:11:14] ...Nf3+ would be deadly.} (17... Qa5 $5 {[%cal Ra5a2]}) 18. Bxg5 {[%emt 0:01:44]} fxg5 {[%emt 0:00:02]} 19. Re4 {[%emt 0:02:02]} Rxe4 {[%emt 0:04:50]} 20. Qxe4 {[%emt 0:00:02]} Qa5 {[%emt 0:00:22]} 21. a3 {[%emt 0:03:53]} Qb5 {[%emt 0:01:48][%cal Od6h2] [#] Hoping for ...Bh2+!} 22. Ne3 {[%emt 0:04:23]} Bf4 {[%emt 0:05:08]} (22... Qxb2 $2 23. Nc4 $18) 23. Re1 {[%emt 0:04:22]} g6 {[%emt 0:02:32] Against Nf5} (23... Qxb2 $2 24. Nc4 $18) 24. b4 {[%emt 0:02:04]} Qa4 {[%emt 0:03:17]} 25. Nc4 {[%emt 0:05:22]} Qb3 {[%emt 0:01:32]} 26. Qd3 {[%emt 0:01:37]} b5 {[%emt 0:07:21]} 27. Na5 {[%emt 0:03:02][%csl LRb3,LRc6]} Qd5 {[%emt 0:03:30]} 28. c4 {[%emt 0:08:54]} bxc4 {[%emt 0:00:13]} 29. Qxc4 {[%emt 0:00:22]} Qxc4 {[%emt 0:00:56]} (29... Rc8 {with more complications.} 30. Re7 Qxc4 31. Nxc4 Rc7) 30. Nxc4 $11 {[%emt 0:00:02][%mdl 4096] Endgame KRB-KRN} Rd8 {[%emt 0:00:17]} 31. Rd1 {[%emt 0:02:28]} (31. Na5 $5 {[%cal Ra5c6]}) 31... Bc7 {[%emt 0:02:04] The position is equal.} 32. Kg2 {[%emt 0:00:47]} Bb6 {[%emt 0:05:03]} 33. Nxb6 {[%emt 0:04:28]} axb6 {[%emt 0:00:05] KR-KR} 34. Kf3 {[%emt 0:01:09]} f5 {[%emt 0:07:03]} 35. a4 {[%emt 0:01:16]} Ra8 {[%emt 0:01:16]} 36. Ra1 {[%emt 0:00:21]} Kf7 {[%emt 0:01:00]} 37. a5 {[%emt 0:00:40]} bxa5 {[%emt 0:00:26]} 38. Rxa5 {[%emt 0:00:23]} Rb8 {[%emt 0:05:17]} 39. gxf5 {[%emt 0:00:10]} Rxb4 {[%emt 0:00:08]} 40. fxg6+ {[%emt 0:00:00]} Kxg6 {[%emt 0:00:00]} 41. Ke4 {[%emt 0:07:54]} Rc4 {[%emt 0:01:29]} 42. Ke5 {[%emt 0:03:27] Black must now prevent Rc5.} Rc2 {[%emt 0:10:02]} 43. Rc5 {[%emt 0:02:41]} Re2+ {[%emt 0:03:29]} 44. Kd6 {[%emt 0:00:07]} Rxf2 {[%emt 0:00:11]} 45. Rxc6 {[%emt 0:00:33]} Rf6+ {[%emt 0:02:06]} 46. Kd7 {[%emt 0:04:15]} Rxc6 $1 {[%emt 0:00:39]} 47. Kxc6 {[%emt 0:00:02] KPP-KPP} h5 $1 {[%emt 0:00:07]} 48. d5 {[%emt 0:03:45] White wants to mate with d6.} g4 {[%emt 0:00:36]} 49. hxg4 {[%emt 0:00:44] KPP-KP} h4 {[%emt 0:00:01]} 50. d6 {[%emt 0:00:07] d7 would kill now.} h3 {[%emt 0:00:04] ( -> ...h2)} 51. d7 {[%emt 0:00:05]} h2 {[%emt 0:00:02]} 52. d8=Q {[%emt 0:00:07] Intending Qd6+ and mate.} (52. d8=R $2 {perishes.} h1=Q+ 53. Rd5 Kf7 $19) 52... h1=Q+ {[%emt 0:00:04]} 53. Kb5 {[%emt 0:01:16]} Qb1+ {[%emt 0:00:12]} 54. Kc6 {[%emt 0:00:50]} Qe4+ {[%emt 0:00:10] Weighted Error Value: White=0.03 (flawless) /Black=0.03 (flawless)} 1/2-1/2